[Event "GER-ch Youth U12 2020"]
[Site "Willingen"]
[Date "2020.10.27"]
[Round "1.21"]
[White "Dorendorf, Mika"]
[Black "Isbilir, Levin"]
[Result "1/2-1/2"]
[ECO "A25"]
[WhiteElo "1462"]
[BlackElo "1233"]
[Annotator "NA RC"]
[PlyCount "53"]
[EventDate "2020.10.27"]
[EventType "swiss"]
[EventRounds "7"]
[EventCountry "GER"]
[SourceTitle "playchess.com"]
[Source "ChessBase"]
[SourceQuality "1"]
[TimeControl "40/5400+30:1800+30"]

1. c4 {[%emt 0:00:00]} e5 {[%emt 0:00:00]} 2. Nc3 {[%emt 0:00:28]} Nc6 {[%emt 0:00:00]} 3. g3 {[%emt 0:00:06]} d6 {[%emt 0:00:10]} 4. Bg2 {[%emt 0:00:05]} Be6 {[%emt 0:00:11]} 5. Nd5 {[%emt 0:01:43]} Qd7 {[%emt 0:01:01]} 6. e3 {[%emt 0:01:00]} Nd8 {[%emt 0:03:46]} 7. d3 {[%emt 0:05:04]} c6 {[%emt 0:01:28]} 8. Nc3 {[%emt 0:01:39]} g6 {[%emt 0:01:24]} 9. e4 {[%emt 0:01:03]} Bg7 {[%emt 0:00:52]} 10. Nge2 {[%emt 0:03:02]} Bh3 {[%emt 0:02:58]} 11. O-O {[%emt 0:00:25]} h5 {[%emt 0:02:24]} 12. f4 {[%emt 0:01:09]} h4 {[%emt 0:01:46]} 13. f5 {[%emt 0:05:01]} Bxg2 {[%emt 0:15:41]} 14. Kxg2 {[%emt 0:00:36]} gxf5 {[%emt 0:10:04]} 15. exf5 {[%emt 0:00:54]} Nf6 {[%emt 0:16:24]} 16. Ne4 {[%emt 0:02:41]} Nxe4 {[%emt 0:03:53]} 17. dxe4 {[%emt 0:00:17]} f6 {[%emt 0:00:48]} 18. g4 {[%emt 0:01:14]} Nf7 {[%emt 0:01:22]} 19. h3 {[%emt 0:00:29]} Bh6 {[%emt 0:00:26]} 20. Ng1 {[%emt 0:01:12]} O-O-O {[%emt 0:07:45]} 21. Nf3 {[%emt 0:00:48]} Rdg8 {[%emt 0:03:15]} 22. Bxh6 {[%emt 0:00:51]} Nxh6 {[%emt 0:00:29]} 23. Kh2 {[%emt 0:00:45]} Kc7 {[%emt 0:02:50]} 24. Qd2 {[%emt 0:00:37]} Qg7 {[%emt 0:01:21]} 25. Rad1 {[%emt 0:01:25]} Rd8 {[%emt 0:02:01]} 26. Rg1 {[%emt 0:01:14]} Nf7 {[%emt 0:02:53]} 27. Ra1 1/2-1/2

[Event "GER-ch Youth U12 2020"]
[Site "Willingen"]
[Date "2020.10.27"]
[Round "1.22"]
[White "Haubold, Christian Lucas"]
[Black "Schwarz, David"]
[Result "1-0"]
[ECO "C50"]
[WhiteElo "1615"]
[BlackElo "1200"]
[Annotator "NA RC"]
[PlyCount "58"]
[EventDate "2020.10.27"]
[EventType "swiss"]
[EventRounds "7"]
[EventCountry "GER"]
[SourceTitle "playchess.com"]
[Source "ChessBase"]
[SourceQuality "1"]
[TimeControl "40/5400+30:1800+30"]

1. e4 {[%emt 0:00:00]} e5 {[%emt 0:00:00]} 2. Nf3 {[%emt 0:00:00]} Nc6 {[%emt 0:00:00]} 3. Bc4 {[%emt 0:00:00]} Bc5 {[%emt 0:00:00]} 4. d3 {[%emt 0:00:05]} Nf6 {[%emt 0:00:53]} 5. O-O {[%emt 0:00:36]} d6 {[%emt 0:00:37]} 6. c3 {[%emt 0:00:30]} a6 {[%emt 0:00:09]} 7. Bb3 {[%emt 0:00:39]} Ba7 {[%emt 0:03:49]} 8. Nbd2 {[%emt 0:03:55]} h6 {[%emt 0:04:08]} 9. h3 {[%emt 0:03:43]} Be6 {[%emt 0:02:16]} 10. Re1 {[%emt 0:03:32]} Qd7 {[%emt 0:02:24]} 11. Nf1 {[%emt 0:01:13]} g5 {[%emt 0:06:00]} 12. Ne3 {[%emt 0:09:44]} Ne7 {[%emt 0:09:58]} 13. Nh2 {[%emt 0:26:55]} O-O-O {[%emt 0:14:05]} 14. Qf3 {[%emt 0:18:33]} Neg8 {[%emt 0:05:47]} 15. Nhf1 {[%emt 0:06:26]} h5 {[%emt 0:16:01]} 16. Ng3 {[%emt 0:03:56]} g4 {[%emt 0:06:55]} 17. Bxe6 {[%emt 0:01:08]} fxe6 {[%emt 0:07:14]} 18. hxg4 {[%emt 0:00:29]} hxg4 {[%emt 0:00:47]} 19. Nxg4 {[%emt 0:00:40]} Nxg4 {[%emt 0:00:23]} 20. Qxg4 {[%emt 0:00:22]} Rf8 {[%emt 0:00:25]} 21. Be3 {[%emt 0:00:53]} Nf6 {[%emt 0:01:52]} 22. Qd1 {[%emt 0:02:22]} Bxe3 {[%emt 0:00:32]} 23. Rxe3 {[%emt 0:00:43]} Qh7 {[%emt 0:08:28]} 24. Rf3 {[%emt 0:02:05]} Qh2+ {[%emt 0:01:12]} 25. Kf1 {[%emt 0:00:14]} Nd7 {[%emt 0:00:34]} 26. Rxf8+ {[%emt 0:02:57]} Rxf8 {[%emt 0:00:10]} 27. Qg4 {[%emt 0:00:28]} c5 {[%emt 0:02:51]} 28. Qh3 {[%emt 0:05:05]} Qxh3 {[%emt 0:02:13]} 29. gxh3 {[%emt 0:00:00]} Rf3 {[%emt 0:02:33]} 1-0

[Event "GER-ch Youth U12 2020"]
[Site "Willingen"]
[Date "2020.10.27"]
[Round "1.24"]
[White "Torosyan, Bagrat"]
[Black "Müller, Mitja"]
[Result "1-0"]
[ECO "B42"]
[WhiteElo "1634"]
[BlackElo "1360"]
[Annotator "NA RC"]
[PlyCount "57"]
[EventDate "2020.10.27"]
[EventType "swiss"]
[EventRounds "7"]
[EventCountry "GER"]
[SourceTitle "playchess.com"]
[Source "ChessBase"]
[SourceQuality "1"]
[TimeControl "40/5400+30:1800+30"]

1. e4 {[%emt 0:00:00]} c5 {[%emt 0:00:00]} 2. Nf3 {[%emt 0:00:00]} e6 {[%emt 0:00:00]} 3. d4 {[%emt 0:00:00]} cxd4 {[%emt 0:00:01]} 4. Nxd4 {[%emt 0:00:03]} a6 {[%emt 0:00:13]} 5. Bd3 {[%emt 0:00:11]} Qc7 {[%emt 0:00:13]} 6. O-O {[%emt 0:00:51]} Nf6 {[%emt 0:00:35]} 7. Re1 {[%emt 0:01:20]} d6 {[%emt 0:01:17]} 8. c4 {[%emt 0:01:10]} Be7 {[%emt 0:01:42]} 9. Nc3 {[%emt 0:02:29]} O-O {[%emt 0:00:51]} 10. Be3 {[%emt 0:07:26]} Nc6 {[%emt 0:04:15]} 11. f4 {[%emt 0:02:50]} Rd8 {[%emt 0:03:10]} 12. Kh1 {[%emt 0:12:29]} Nb4 {[%emt 0:21:52]} 13. Bf1 {[%emt 0:04:44]} e5 {[%emt 0:10:50]} 14. Nb3 {[%emt 0:10:44]} Ng4 {[%emt 0:09:29]} 15. f5 {[%emt 0:07:10]} Nf6 {[%emt 0:05:59]} 16. a3 {[%emt 0:13:07]} Nc6 {[%emt 0:00:48]} 17. Bg5 {[%emt 0:02:19]} Qb6 {[%emt 0:14:53]} 18. Bxf6 {[%emt 0:04:54]} Bxf6 {[%emt 0:00:14]} 19. Nd5 {[%emt 0:02:39]} Qf2 {[%emt 0:01:20]} 20. Qg4 {[%emt 0:01:14]} Kf8 {[%emt 0:02:24]} 21. Re2 {[%emt 0:04:10]} Qa7 {[%emt 0:02:12]} 22. Rd1 {[%emt 0:02:17]} b5 {[%emt 0:01:16]} 23. cxb5 {[%emt 0:02:11]} axb5 {[%emt 0:00:14]} 24. Rc2 {[%emt 0:00:30]} Na5 {[%emt 0:03:33]} 25. Rc7 {[%emt 0:02:37]} Qf2 {[%emt 0:02:19]} 26. Nxa5 {[%emt 0:01:21]} Rxa5 {[%emt 0:00:42]} 27. Qh5 {[%emt 0:01:36]} g6 {[%emt 0:01:11]} 28. Qxh7 {[%emt 0:00:34]} Bg7 {[%emt 0:03:12]} 29. f6 1-0

[Event "GER-ch Youth U12 2020"]
[Site "Willingen"]
[Date "2020.10.27"]
[Round "1.27"]
[White "Detjen, Mattes"]
[Black "Fruth, David"]
[Result "0-1"]
[ECO "C42"]
[WhiteElo "1190"]
[BlackElo "1665"]
[Annotator "NA RC"]
[PlyCount "68"]
[EventDate "2020.10.27"]
[EventType "swiss"]
[EventRounds "7"]
[EventCountry "GER"]
[SourceTitle "playchess.com"]
[Source "ChessBase"]
[SourceQuality "1"]
[TimeControl "40/5400+30:1800+30"]

1. e4 e5 2. Nf3 {[%emt 0:00:00]} Nf6 {[%emt 0:00:00]} 3. Nxe5 d6 4. Nf3 {[%emt 0:00:55]} Nxe4 {[%emt 0:00:00]} 5. Nc3 {[%emt 0:01:05]} Nxc3 {[%emt 0:00:00]} 6. dxc3 {[%emt 0:00:54]} Be7 {[%emt 0:00:09]} 7. Bd3 {[%emt 0:00:17]} Nc6 {[%emt 0:00:09]} 8. Bf4 {[%emt 0:00:41]} Be6 {[%emt 0:00:21]} 9. Qe2 {[%emt 0:01:15]} Qd7 {[%emt 0:02:11]} 10. O-O-O {[%emt 0:02:32]} O-O-O {[%emt 0:03:14]} 11. Bb5 {[%emt 0:02:12]} Kb8 {[%emt 0:00:29]} 12. Ne5 {[%emt 0:01:26]} Qe8 {[%emt 0:00:58]} 13. Nxc6+ {[%emt 0:04:57]} bxc6 {[%emt 0:00:04]} 14. Ba6 {[%emt 0:02:06]} Ka8 {[%emt 0:01:07]} 15. b4 {[%emt 0:04:38]} Bf6 {[%emt 0:01:24]} 16. Kd2 {[%emt 0:02:40]} Qe7 {[%emt 0:01:59]} 17. b5 {[%emt 0:01:37]} Bxc3+ {[%emt 0:05:35]} 18. Kxc3 {[%emt 0:04:34]} Qf6+ {[%emt 0:00:03]} 19. Kd3 {[%emt 0:01:00]} Qxf4 {[%emt 0:00:15]} 20. bxc6 {[%emt 0:02:06]} Rhe8 {[%emt 0:05:00]} 21. Qf3 {[%emt 0:06:16]} Bf5+ {[%emt 0:01:43]} 22. Kc3 {[%emt 0:00:26]} Qe5+ {[%emt 0:00:39]} 23. Kb3 {[%emt 0:05:48]} Be6+ {[%emt 0:02:51]} 24. c4 {[%emt 0:04:09]} d5 {[%emt 0:00:19]} 25. Rb1 {[%emt 0:08:34]} dxc4+ {[%emt 0:00:30]} 26. Ka4 {[%emt 0:02:52]} Bc8 {[%emt 0:01:17]} 27. Bxc4 {[%emt 0:04:04]} Rd4 {[%emt 0:01:12]} 28. Qb3 {[%emt 0:00:43]} Ba6 {[%emt 0:00:26]} 29. Rhc1 {[%emt 0:03:04]} Qc5 {[%emt 0:00:49]} 30. Rc2 {[%emt 0:03:26]} Rxc4+ {[%emt 0:00:52]} 31. Rxc4 {[%emt 0:01:27]} Qxc4+ {[%emt 0:00:02]} 32. Qxc4 {[%emt 0:00:36]} Bxc4 {[%emt 0:00:02]} 33. Rb7 {[%emt 0:00:09]} Rc8 {[%emt 0:00:06]} 34. Kb4 {[%emt 0:00:03]} Ba6 {[%emt 0:00:10]} 0-1

[Event "GER-ch Youth U12 2020"]
[Site "Willingen"]
[Date "2020.10.27"]
[Round "1.28"]
[White "Grabs, Peter"]
[Black "Bondarcuks, Timurs"]
[Result "1-0"]
[ECO "C68"]
[WhiteElo "1674"]
[BlackElo "1198"]
[Annotator "NA RC"]
[PlyCount "77"]
[EventDate "2020.10.27"]
[EventType "swiss"]
[EventRounds "7"]
[EventCountry "GER"]
[SourceTitle "playchess.com"]
[Source "ChessBase"]
[SourceQuality "1"]
[TimeControl "40/5400+30:1800+30"]

1. e4 {[%emt 0:00:00]} e5 {[%emt 0:00:00]} 2. Nf3 {[%emt 0:00:00]} Nc6 {[%emt 0:00:00]} 3. Bb5 {[%emt 0:00:00]} a6 {[%emt 0:00:04]} 4. Bxc6 {[%emt 0:00:00]} dxc6 {[%emt 0:01:03]} 5. Nc3 {[%emt 0:00:00]} f6 {[%emt 0:01:12]} 6. d4 {[%emt 0:00:04]} Bg4 7. dxe5 {[%emt 0:04:07]} Qxd1+ {[%emt 0:05:09]} 8. Kxd1 {[%emt 0:00:14]} Bxf3+ {[%emt 0:00:22]} 9. gxf3 {[%emt 0:00:11]} O-O-O+ {[%emt 0:00:46]} 10. Ke2 {[%emt 0:00:16]} fxe5 {[%emt 0:00:57]} 11. Be3 {[%emt 0:01:04]} Nf6 {[%emt 0:00:36]} 12. Rad1 {[%emt 0:00:30]} Bb4 {[%emt 0:06:41]} 13. Na4 {[%emt 0:00:38]} b6 {[%emt 0:01:51]} 14. a3 {[%emt 0:00:22]} Be7 {[%emt 0:01:19]} 15. b4 {[%emt 0:15:23]} Kb7 {[%emt 0:02:52]} 16. Nb2 {[%emt 0:02:07]} b5 {[%emt 0:03:48]} 17. Nd3 {[%emt 0:00:37]} Nd7 {[%emt 0:01:01]} 18. Rhg1 {[%emt 0:00:19]} g6 {[%emt 0:02:00]} 19. Bg5 {[%emt 0:02:12]} Bxg5 {[%emt 0:00:55]} 20. Rxg5 {[%emt 0:00:13]} Rhe8 {[%emt 0:00:12]} 21. Rd2 {[%emt 0:04:05]} Nb6 {[%emt 0:07:04]} 22. Rxe5 {[%emt 0:07:02]} Nc4 {[%emt 0:06:45]} 23. Rxe8 {[%emt 0:00:53]} Rxe8 {[%emt 0:00:27]} 24. Nc5+ {[%emt 0:00:46]} Ka7 {[%emt 0:01:44]} 25. Rd7 {[%emt 0:02:55]} Kb6 {[%emt 0:02:27]} 26. a4 {[%emt 0:14:03]} bxa4 {[%emt 0:04:51]} 27. Nxa4+ {[%emt 0:00:56]} Kb5 {[%emt 0:00:28]} 28. Nc5 {[%emt 0:00:13]} a5 {[%emt 0:00:46]} 29. c3 {[%emt 0:00:45]} axb4 {[%emt 0:00:40]} 30. cxb4 {[%emt 0:00:13]} Kxb4 {[%emt 0:00:06]} 31. Na6+ {[%emt 0:00:12]} Kc3 {[%emt 0:04:10]} 32. Rxc7 {[%emt 0:07:50]} Rd8 {[%emt 0:04:27]} 33. Rxc6 {[%emt 0:02:42]} Rd2+ {[%emt 0:01:26]} 34. Kf1 {[%emt 0:00:17]} Rd3 {[%emt 0:07:20]} 35. Kg2 {[%emt 0:01:13]} Kd4 {[%emt 0:00:30]} 36. Rc7 {[%emt 0:01:24]} Ne5 {[%emt 0:00:41]} 37. f4 {[%emt 0:01:31]} Nf3 {[%emt 0:01:25]} 38. Rd7+ {[%emt 0:00:13]} Kxe4 {[%emt 0:00:10]} 39. Nc5+ {[%emt 0:00:07]} 1-0

[Event "GER-ch Youth U12 2020"]
[Site "Willingen"]
[Date "2020.10.28"]
[Round "2.2"]
[White "Haubold, Christian Lucas"]
[Black "Kempe, Caius Emilian"]
[Result "0-1"]
[ECO "B28"]
[WhiteElo "1615"]
[BlackElo "1840"]
[Annotator "NA RC"]
[PlyCount "72"]
[EventDate "2020.10.27"]
[EventType "swiss"]
[EventRounds "7"]
[EventCountry "GER"]
[SourceTitle "playchess.com"]
[Source "ChessBase"]
[SourceQuality "1"]
[TimeControl "40/5400+30:1800+30"]

{[%evp 9,55,23,25,24,32,-46,26,-32,-24,-43,-34,-56,-28,-184,-126,32767,32767,-183,32767,32767,-279,-280,-327,-372,-360,-364,-317,-316,-340,-693,-437,-433,-358,-350,-339,-328,-204,-180,32767,32767,32767,32767,32767,-83,-119,-231,-344,-475]} 1. e4 {[%emt 0:00:00]} c5 {[%emt 0:00:00]} 2. Nf3 {[%emt 0:00:00]} a6 {[%emt 0:00:00]} 3. d4 {[%emt 0:02:08]} cxd4 {[%emt 0:00:00]} 4. Nxd4 {[%emt 0:00:11]} e5 {[%emt 0:00:18]} 5. Nb3 {[%emt 0:26:42]} Nf6 {[%emt 0:00:38]} 6. Bd3 {[%emt 0:05:07]} d5 {[%emt 0:03:53]} 7. Bg5 {[%emt 0:07:35] B28: Sicilian: 2 Nf3 a6 (O'Kelly Variation).} ({White should try} 7. exd5 $11 Qxd5 8. O-O) 7... d4 {[%emt 0:11:32] [#]} (7... dxe4 $15 8. Bxf6 gxf6 9. Bxe4 Qxd1+ 10. Kxd1 f5) 8. Qf3 $146 {[%emt 0:05:34]} ({Predecessor:} 8. O-O Be7 9. a4 Bg4 10. f3 Be6 11. N1d2 Nc6 12. Bc4 h6 13. Bxf6 gxf6 14. Bxe6 fxe6 {½-½ (40) Bardos,I (1960)-Farkas,S (1836) Hungary 2016}) 8... Be7 {[%emt 0:00:37]} 9. h3 {[%emt 0:07:11]} O-O {[%emt 0:02:08]} 10. N1d2 {[%emt 0:02:00]} Nc6 {[%emt 0:00:59]} 11. O-O-O {[%emt 0:06:34]} (11. O-O $15) 11... Be6 {[%emt 0:03:54]} ({Black should play} 11... a5 $19 12. Kb1 a4) 12. Kb1 {[%emt 0:03:51]} Rc8 {[%emt 0:02:03]} 13. Nf1 {[%emt 0:05:59]} (13. Qe2 $17) 13... a5 {[%emt 0:05:28]} 14. Ng3 {[%emt 0:06:13] [#]} a4 $1 {[%emt 0:00:55]} 15. Nc1 {[%emt 0:01:08]} Qb6 {[%emt 0:05:01]} 16. Bxf6 {[%emt 0:02:41]} Bxf6 {[%emt 0:00:50]} 17. Nf5 {[%emt 0:01:04]} a3 {[%emt 0:05:49]} 18. b3 {[%emt 0:01:29]} Nb4 {[%emt 0:00:14]} 19. Qe2 $2 {[%emt 0:03:45]} (19. Ne2) 19... Qc5 {[%emt 0:01:16]} 20. c4 {[%emt 0:02:30]} dxc3 {[%emt 0:00:46]} 21. Bc2 {[%emt 0:00:15]} Bxf5 {[%emt 0:02:01]} 22. exf5 {[%emt 0:00:09] [#]} e4 $1 {[%emt 0:00:34]} 23. Qxe4 {[%emt 0:01:11]} Rfe8 {[%emt 0:00:36]} 24. Qf3 {[%emt 0:00:31]} Nxc2 {[%emt 0:02:23]} 25. Kxc2 {[%emt 0:00:15]} Bg5 {[%emt 0:02:08]} 26. Nd3 {[%emt 0:00:53]} Qb5 {[%emt 0:01:18]} 27. h4 {[%emt 0:00:51] [#]} (27. Rde1 $17 {is a better defense.}) 27... Bd2 $1 {[%emt 0:00:22]} 28. Rh3 $19 {[%emt 0:00:27]} (28. f6 $142) 28... f6 {[%emt 0:03:45]} 29. h5 {[%emt 0:00:54]} h6 {[%emt 0:00:36]} 30. Rg3 {[%emt 0:00:22]} Qd7 {[%emt 0:00:32]} 31. Qg4 {[%emt 0:00:30]} Qe7 {[%emt 0:01:20]} 32. f4 {[%emt 0:00:47]} Rc7 {[%emt 0:00:27]} 33. Rf1 {[%emt 0:00:44]} b5 {[%emt 0:01:57]} 34. Rd1 {[%emt 0:01:16]} Qe2 {[%emt 0:01:47]} 35. Qxe2 {[%emt 0:01:35]} Rxe2 {[%emt 0:00:01]} 36. Rf1 {[%emt 0:01:23]} Bxf4+ {[%emt 0:00:48]} 0-1

[Event "GER-ch Youth U12 2020"]
[Site "Willingen"]
[Date "2020.10.28"]
[Round "2.4"]
[White "Chinguun Sundui"]
[Black "Torosyan, Bagrat"]
[Result "1-0"]
[ECO "B50"]
[WhiteElo "1746"]
[BlackElo "1634"]
[Annotator "NA RC"]
[PlyCount "67"]
[EventDate "2020.10.27"]
[EventType "swiss"]
[EventRounds "7"]
[EventCountry "GER"]
[SourceTitle "playchess.com"]
[Source "ChessBase"]
[SourceQuality "1"]
[TimeControl "40/5400+30:1800+30"]

1. e4 {[%emt 0:00:00]} c5 {[%emt 0:00:00]} 2. Nf3 {[%emt 0:00:00]} d6 {[%emt 0:00:00]} 3. Nc3 {[%emt 0:00:00]} Nf6 {[%emt 0:00:24]} 4. e5 {[%emt 0:00:09]} dxe5 {[%emt 0:01:05]} 5. Nxe5 {[%emt 0:00:07]} Nbd7 {[%emt 0:02:55]} 6. Nc4 {[%emt 0:00:34]} Nb6 {[%emt 0:03:48]} 7. b3 {[%emt 0:00:23]} Bg4 {[%emt 0:08:53]} 8. Be2 {[%emt 0:01:17]} Bxe2 {[%emt 0:04:09]} 9. Qxe2 {[%emt 0:02:41]} e6 {[%emt 0:02:15]} 10. O-O {[%emt 0:02:29]} Be7 {[%emt 0:01:03]} 11. Bb2 {[%emt 0:03:03]} O-O {[%emt 0:01:48]} 12. Rfd1 {[%emt 0:01:25]} Nxc4 {[%emt 0:07:28]} 13. bxc4 {[%emt 0:00:30]} a6 {[%emt 0:05:20]} 14. Rab1 {[%emt 0:03:39]} Qc7 {[%emt 0:05:56]} 15. Qf3 {[%emt 0:06:31]} Bd6 {[%emt 0:04:02]} 16. h3 {[%emt 0:01:08]} Be5 {[%emt 0:03:51]} 17. Re1 {[%emt 0:07:48]} Bd4 {[%emt 0:06:27]} 18. Ne2 {[%emt 0:01:34]} Bxb2 {[%emt 0:00:10]} 19. Rxb2 {[%emt 0:00:20]} Rab8 {[%emt 0:01:59]} 20. Reb1 {[%emt 0:00:14]} b6 {[%emt 0:00:36]} 21. d3 {[%emt 0:02:24]} Rfd8 {[%emt 0:02:47]} 22. g4 {[%emt 0:06:32]} Rb7 {[%emt 0:14:06]} 23. Kg2 {[%emt 0:04:02]} Rdb8 {[%emt 0:01:52]} 24. Nc3 {[%emt 0:03:23]} Ne8 {[%emt 0:03:33]} 25. h4 {[%emt 0:04:15]} Nd6 {[%emt 0:02:31]} 26. a4 {[%emt 0:00:44]} h5 {[%emt 0:03:09]} 27. g5 {[%emt 0:07:50]} g6 {[%emt 0:00:52]} 28. Ne4 {[%emt 0:01:10]} Nf5 {[%emt 0:02:56]} 29. Nf6+ {[%emt 0:00:42]} Kg7 {[%emt 0:01:48]} 30. Qe4 {[%emt 0:00:57]} Qe7 {[%emt 0:06:02]} 31. Qe5 {[%emt 0:03:40]} Nxh4+ {[%emt 0:02:04]} 32. Kh3 {[%emt 0:00:13]} Nf3 {[%emt 0:00:48]} 33. Nxh5+ {[%emt 0:00:15]} Kg8 {[%emt 0:00:37]} 34. Qg7# {[%emt 0:00:09]} 1-0

[Event "GER-ch Youth U12 2020"]
[Site "Willingen"]
[Date "2020.10.28"]
[Round "2.5"]
[White "Toth, Luca"]
[Black "Uhlmann, Tim"]
[Result "1-0"]
[ECO "C54"]
[WhiteElo "1680"]
[BlackElo "1523"]
[Annotator "NA RC"]
[PlyCount "169"]
[EventDate "2020.10.27"]
[EventType "swiss"]
[EventRounds "7"]
[EventCountry "GER"]
[SourceTitle "playchess.com"]
[Source "ChessBase"]
[SourceQuality "1"]
[TimeControl "40/5400+30:1800+30"]

1. e4 {[%emt 0:00:00]} e5 {[%emt 0:00:00]} 2. Nf3 {[%emt 0:00:00]} Nc6 {[%emt 0:00:00]} 3. Bc4 {[%emt 0:00:00]} Bc5 {[%emt 0:00:00]} 4. c3 {[%emt 0:00:00]} Nf6 {[%emt 0:00:00]} 5. d3 {[%emt 0:00:00]} a6 {[%emt 0:00:04]} 6. Nbd2 {[%emt 0:00:00]} Ba7 {[%emt 0:00:24]} 7. h3 {[%emt 0:00:04]} h6 {[%emt 0:00:25]} 8. Nf1 {[%emt 0:00:09]} d5 {[%emt 0:00:06]} 9. exd5 {[%emt 0:00:19]} Nxd5 {[%emt 0:00:07]} 10. Ng3 {[%emt 0:00:35]} Qd6 {[%emt 0:00:08]} 11. Ne4 {[%emt 0:01:14]} Qe6 {[%emt 0:07:35]} 12. Qb3 {[%emt 0:05:05]} Nce7 {[%emt 0:00:15]} 13. O-O {[%emt 0:02:36]} c6 {[%emt 0:01:21]} 14. Re1 {[%emt 0:03:31]} b5 {[%emt 0:01:03]} 15. Bxd5 {[%emt 0:00:06]} cxd5 {[%emt 0:00:36]} 16. Ng3 {[%emt 0:00:24]} Ng6 {[%emt 0:01:43]} 17. Be3 {[%emt 0:01:51]} O-O {[%emt 0:01:40]} 18. Bxa7 {[%emt 0:02:22]} Rxa7 {[%emt 0:01:09]} 19. a4 {[%emt 0:17:42]} Rb7 {[%emt 0:08:01]} 20. axb5 {[%emt 0:07:49]} Rxb5 {[%emt 0:00:47]} 21. Qc2 {[%emt 0:00:26]} Qb6 {[%emt 0:02:46]} 22. b4 {[%emt 0:02:16]} f6 {[%emt 0:05:26]} 23. d4 {[%emt 0:03:09]} e4 {[%emt 0:00:43]} 24. Nd2 {[%emt 0:00:14]} f5 {[%emt 0:02:38]} 25. f3 {[%emt 0:26:02]} f4 {[%emt 0:04:09]} 26. Ngf1 {[%emt 0:00:14]} e3 {[%emt 0:00:58]} 27. Nb3 {[%emt 0:00:11]} Nh4 {[%emt 0:10:18]} 28. Nh2 {[%emt 0:00:46]} Bf5 {[%emt 0:01:12]} 29. Qe2 {[%emt 0:02:04]} Qg6 {[%emt 0:01:51]} 30. Kh1 {[%emt 0:09:27]} Bd3 {[%emt 0:07:06]} 31. Qb2 {[%emt 0:00:07]} e2 {[%emt 0:15:35]} 32. Rg1 {[%emt 0:00:08]} Qg3 {[%emt 0:06:05]} 33. Rae1 {[%emt 0:03:48]} Nxg2 {[%emt 0:10:33]} 34. Rxe2 {[%emt 0:01:15]} Bxe2 {[%emt 0:01:54]} 35. Qxe2 {[%emt 0:00:18]} Qxh3 {[%emt 0:02:39]} 36. Rxg2 {[%emt 0:01:36]} Qf5 {[%emt 0:02:04]} 37. Rg1 {[%emt 0:00:37]} Qf7 {[%emt 0:01:12]} 38. Ng4 {[%emt 0:00:56]} Qh5+ {[%emt 0:00:31]} 39. Qh2 {[%emt 0:00:05]} Qxh2+ {[%emt 0:00:19]} 40. Kxh2 {[%emt 0:00:05]} Kh7 {[%emt 0:01:08]} 41. Ra1 {[%emt 0:33:34]} Rb6 {[%emt 0:35:18]} 42. Nc5 {[%emt 0:00:40]} Rc8 {[%emt 0:00:37]} 43. Ne5 {[%emt 0:01:42]} g5 {[%emt 0:00:32]} 44. Kh3 {[%emt 0:01:15]} h5 {[%emt 0:00:30]} 45. Ra5 {[%emt 0:02:28]} Rh6 {[%emt 0:00:00]} 46. Kg2 {[%emt 0:02:42]} g4 {[%emt 0:00:00]} 47. fxg4 {[%emt 0:00:07]} hxg4 {[%emt 0:00:00]} 48. Nxg4 {[%emt 0:00:52]} Rg8 {[%emt 0:00:00]} 49. Kf3 {[%emt 0:00:03]} Rh3+ {[%emt 0:00:00]} 50. Kxf4 {[%emt 0:00:03]} Rh4 {[%emt 0:00:00]} 51. Rxa6 {[%emt 0:00:22]} Rhxg4+ {[%emt 0:00:00]} 52. Ke5 {[%emt 0:00:11]} R8g5+ {[%emt 0:00:00]} 53. Kd6 {[%emt 0:00:18]} Rg3 {[%emt 0:00:00]} 54. Ra3 {[%emt 0:02:04]} Rf5 {[%emt 0:00:00]} 55. Kc6 {[%emt 0:01:57]} Kg8 {[%emt 0:00:00]} 56. Ra8+ {[%emt 0:00:19]} Kf7 {[%emt 0:00:00]} 57. Ra7+ {[%emt 0:00:28]} Kg8 {[%emt 0:00:17]} 58. Ra3 {[%emt 0:00:25]} Kf7 {[%emt 0:01:21]} 59. b5 {[%emt 0:00:57]} Rg6+ {[%emt 0:00:33]} 60. Kb7 {[%emt 0:00:09]} Rff6 {[%emt 0:02:09]} 61. Ra6 {[%emt 0:00:40]} Ke7 {[%emt 0:02:31]} 62. Rxf6 {[%emt 0:00:57]} Rxf6 {[%emt 0:00:22]} 63. b6 {[%emt 0:00:25]} Kd6 {[%emt 0:01:25]} 64. Ka7 {[%emt 0:00:45]} Kc6 {[%emt 0:01:08]} 65. b7 {[%emt 0:00:05]} Rf7 {[%emt 0:00:37]} 66. Ka8 {[%emt 0:00:08]} Rxb7 {[%emt 0:00:21]} 67. Nxb7 {[%emt 0:00:06]} Kb5 {[%emt 0:00:05]} 68. Nd6+ {[%emt 0:01:04]} Kc6 {[%emt 0:00:18]} 69. Nf5 {[%emt 0:00:28]} Kb5 {[%emt 0:00:35]} 70. Ne3 {[%emt 0:00:07]} Kc6 {[%emt 0:00:07]} 71. Nxd5 {[%emt 0:00:05]} Kxd5 {[%emt 0:00:11]} 72. Kb7 {[%emt 0:00:04]} Kc4 {[%emt 0:00:18]} 73. Kc6 {[%emt 0:00:05]} Kxc3 {[%emt 0:00:17]} 74. d5 {[%emt 0:00:03]} Kd4 {[%emt 0:00:07]} 75. d6 {[%emt 0:00:07]} Ke5 {[%emt 0:00:17]} 76. d7 {[%emt 0:00:03]} Ke6 {[%emt 0:00:11]} 77. d8=Q {[%emt 0:00:06]} Kf7 {[%emt 0:00:08]} 78. Qd6 {[%emt 0:00:05]} Kg7 {[%emt 0:00:23]} 79. Qe6 {[%emt 0:00:04]} Kh7 {[%emt 0:00:16]} 80. Qf6 {[%emt 0:00:05]} Kg8 {[%emt 0:00:09]} 81. Qe7 {[%emt 0:00:04]} Kh8 {[%emt 0:00:09]} 82. Kd6 {[%emt 0:00:03]} Kg8 {[%emt 0:00:11]} 83. Ke6 {[%emt 0:00:04]} Kh8 {[%emt 0:00:06]} 84. Kf6 {[%emt 0:00:03]} Kg8 {[%emt 0:00:06]} 85. Qg7# 1-0